[Event "*** Titled Tuesday Blitz"]
[Site "Chess.com"]
[Date "2020.03.03"]
[Round "1"]
[White "NiranjanNavalgund"]
[Black "rpragchess"]
[Result "0-1"]
[WhiteElo "2430"]
[BlackElo "2784"]
[TimeControl "180+1"]
[EndTime "9:09:11 PST"]
[Termination "rpragchess won by resignation"]

1. Nf3 {[%clk 0:01:27.8]} 1... Nf6 {[%clk 0:02:56.6]} 2. g3 {[%clk 0:01:28.7]}
2... b5 {[%clk 0:02:55.1]} 3. Bg2 {[%clk 0:01:29.6]} 3... Bb7 {[%clk 0:02:55]}
4. O-O {[%clk 0:01:30.5]} 4... e6 {[%clk 0:02:54.1]} 5. d4 {[%clk 0:01:31.4]}
5... c5 {[%clk 0:02:53]} 6. a4 {[%clk 0:01:32.3]} 6... b4 {[%clk 0:02:52.5]} 7.
c3 {[%clk 0:01:31]} 7... Na6 {[%clk 0:02:44.7]} 8. dxc5 {[%clk 0:01:31.4]} 8...
Bxc5 {[%clk 0:02:44.2]} 9. cxb4 {[%clk 0:01:31.9]} 9... Bxb4 {[%clk 0:02:44.3]}
10. Nc3 {[%clk 0:01:32.8]} 10... O-O {[%clk 0:02:42.8]} 11. Bg5 {[%clk
0:01:32.7]} 11... Be7 {[%clk 0:02:32.9]} 12. Ne5 {[%clk 0:01:31.7]} 12... Bxg2
{[%clk 0:02:30.6]} 13. Kxg2 {[%clk 0:01:32.6]} 13... Nb8 {[%clk 0:01:44.1]} 14.
e4 {[%clk 0:01:25.3]} 14... d6 {[%clk 0:01:42.4]} 15. Nd3 {[%clk 0:01:24.7]}
15... Nbd7 {[%clk 0:01:40.2]} 16. a5 {[%clk 0:01:17.4]} 16... Qb8 {[%clk
0:01:38.3]} 17. b4 {[%clk 0:01:14.2]} 17... Rc8 {[%clk 0:01:37.9]} 18. Rc1
{[%clk 0:01:09.7]} 18... Rxc3 {[%clk 0:01:30.1]} 19. Rxc3 {[%clk 0:01:09.7]}
19... Nxe4 {[%clk 0:01:30.3]} 20. Bxe7 {[%clk 0:01:09.9]} 20... Nxc3 {[%clk
0:01:30.5]} 21. Qc2 {[%clk 0:01:10]} 21... Nd5 {[%clk 0:01:28.6]} 22. Qc6 {[%clk
0:01:08.9]} 22... Ne5 {[%clk 0:01:05.7]} 23. Nxe5 {[%clk 0:00:56]} 23... Nxe7
{[%clk 0:01:05.8]} 24. Qd7 {[%clk 0:00:56.2]} 24... Qd8 {[%clk 0:00:58.8]} 25.
Rd1 {[%clk 0:00:48.2]} 25... Qxd7 {[%clk 0:00:44.7]} 26. Nxd7 {[%clk 0:00:47.9]}
26... Nd5 {[%clk 0:00:45.4]} 27. b5 {[%clk 0:00:42.1]} 27... Rd8 {[%clk
0:00:43.6]} 28. Rc1 {[%clk 0:00:18.8]} 28... h5 {[%clk 0:00:33.8]} 29. b6 {[%clk
0:00:17.4]} 29... Rxd7 {[%clk 0:00:30.6]} 30. Rc8+ {[%clk 0:00:16.4]} 30... Kh7
{[%clk 0:00:30.1]} 31. Rb8 {[%clk 0:00:15.7]} 31... axb6 {[%clk 0:00:29.9]} 32.
axb6 {[%clk 0:00:16.6]} 32... g6 {[%clk 0:00:23.3]} 33. b7 {[%clk 0:00:16.7]}
33... Nf6 {[%clk 0:00:11.9]} 34. Rh8+ {[%clk 0:00:16.3]} 34... Kxh8 {[%clk
0:00:12.2]} 35. b8=Q+ {[%clk 0:00:16.4]} 35... Kg7 {[%clk 0:00:12.8]} 36. Qb2
{[%clk 0:00:16.9]} 36... e5 {[%clk 0:00:12.8]} 37. h3 {[%clk 0:00:17.8]} 37...
Re7 {[%clk 0:00:09.7]} 38. Qb5 {[%clk 0:00:17.5]} 38... Re6 {[%clk 0:00:10.2]}
39. Qc6 {[%clk 0:00:16.9]} 39... g5 {[%clk 0:00:10.2]} 40. g4 {[%clk 0:00:16.5]}
40... hxg4 {[%clk 0:00:10.2]} 41. hxg4 {[%clk 0:00:17.4]} 41... Nxg4 {[%clk
0:00:10.4]} 42. Qf3 {[%clk 0:00:17.6]} 42... Nf6 {[%clk 0:00:10.7]} 43. Qf5
{[%clk 0:00:17.6]} 43... Nh7 {[%clk 0:00:11.1]} 44. Kg3 {[%clk 0:00:17.1]} 44...
Nf6 {[%clk 0:00:10.6]} 45. f3 {[%clk 0:00:16.7]} 45... Kh6 {[%clk 0:00:10.4]}
46. Qh3+ {[%clk 0:00:16.5]} 46... Kg7 {[%clk 0:00:10.4]} 47. Qf5 {[%clk
0:00:16.5]} 47... Nh5+ {[%clk 0:00:09.6]} 48. Kg4 {[%clk 0:00:16]} 48... Nf4
{[%clk 0:00:08.7]} 49. Kxg5 {[%clk 0:00:12.6]} 49... Rg6+ {[%clk 0:00:08]} 50.
Kh4 {[%clk 0:00:13]} 50... Rh6+ {[%clk 0:00:07.7]} 51. Kg3 {[%clk 0:00:13.1]}
51... Rg6+ {[%clk 0:00:06.7]} 52. Kf2 {[%clk 0:00:13.4]} 52... Rg2+ {[%clk
0:00:06.9]} 53. Kf1 {[%clk 0:00:13.7]} 53... Rg6 {[%clk 0:00:07.6]} 54. Qd7
{[%clk 0:00:13.5]} 54... Nd5 {[%clk 0:00:07.5]} 55. Kf2 {[%clk 0:00:12.5]} 55...
Nf4 {[%clk 0:00:07.3]} 56. Qf5 {[%clk 0:00:12.3]} 56... Ne6 {[%clk 0:00:05.9]}
57. Kf1 {[%clk 0:00:12.3]} 57... Nd4 {[%clk 0:00:06.1]} 58. Qe4 {[%clk
0:00:12.6]} 58... Rf6 {[%clk 0:00:06.3]} 59. Qg4+ {[%clk 0:00:12.8]} 59... Rg6
{[%clk 0:00:06.8]} 60. Qe4 {[%clk 0:00:12.4]} 60... Nxf3 {[%clk 0:00:07.3]} 61.
Kf2 {[%clk 0:00:11.3]} 61... Ng5 {[%clk 0:00:07]} 62. Qd5 {[%clk 0:00:10.7]}
62... Nh3+ {[%clk 0:00:06.7]} 63. Kf3 {[%clk 0:00:10.4]} 63... Nf4 {[%clk
0:00:07.3]} 64. Qe4 {[%clk 0:00:09.7]} 64... Ne6 {[%clk 0:00:07.6]} 65. Qb7
{[%clk 0:00:08.8]} 65... e4+ {[%clk 0:00:05.5]} 66. Ke3 {[%clk 0:00:08.3]} 66...
Nc5 {[%clk 0:00:03.7]} 67. Qd5 {[%clk 0:00:08.2]} 67... Rg3+ {[%clk 0:00:03.7]}
68. Kf2 {[%clk 0:00:08.1]} 68... Rf3+ {[%clk 0:00:04.1]} 69. Kg2 {[%clk
0:00:08.6]} 69... Rf6 {[%clk 0:00:04.7]} 70. Qg5+ {[%clk 0:00:07.9]} 70... Rg6
{[%clk 0:00:05.2]} 0-1

[Event "*** Titled Tuesday Blitz"]
[Site "Chess.com"]
[Date "2020.03.03"]
[Round "1"]
[White "Jungle_Jaguar"]
[Black "monstertube"]
[Result "1-0"]
[WhiteElo "2593"]
[BlackElo "2131"]
[TimeControl "180+1"]
[EndTime "9:09:13 PST"]
[Termination "Jungle_Jaguar won by resignation"]

1. e4 {[%clk 0:03:00.9]} 1... e5 {[%clk 0:02:59.4]} 2. Nf3 {[%clk 0:03:01]} 2...
Nf6 {[%clk 0:02:59]} 3. Nxe5 {[%clk 0:03:01.1]} 3... d6 {[%clk 0:02:58.5]} 4.
Nf3 {[%clk 0:03:00.6]} 4... Nxe4 {[%clk 0:02:58.2]} 5. Nc3 {[%clk 0:03:00.7]}
5... Nxc3 {[%clk 0:02:57.5]} 6. dxc3 {[%clk 0:03:01.6]} 6... Be7 {[%clk
0:02:57.7]} 7. Be3 {[%clk 0:02:59.9]} 7... Nd7 {[%clk 0:02:56.9]} 8. Qd2 {[%clk
0:02:59.8]} 8... O-O {[%clk 0:02:53.4]} 9. O-O-O {[%clk 0:02:59.6]} 9... Ne5
{[%clk 0:02:48.3]} 10. Ng5 {[%clk 0:02:28.3]} 10... Bf5 {[%clk 0:02:33.7]} 11.
h3 {[%clk 0:02:17.3]} 11... h6 {[%clk 0:02:24.3]} 12. f4 {[%clk 0:02:14.8]}
12... hxg5 {[%clk 0:02:09.9]} 13. fxe5 {[%clk 0:02:10]} 13... dxe5 {[%clk
0:02:10.8]} 14. Qf2 {[%clk 0:01:52.2]} 14... Qc8 {[%clk 0:02:07.9]} 15. Qg3
{[%clk 0:01:48.4]} 15... Qe6 {[%clk 0:02:03.1]} 16. Kb1 {[%clk 0:01:34.6]} 16...
Rad8 {[%clk 0:02:01.6]} 17. Be2 {[%clk 0:01:33]} 17... Rxd1+ {[%clk 0:02:00.8]}
18. Bxd1 {[%clk 0:01:29.4]} 18... Rd8 {[%clk 0:02:01.7]} 19. Rf1 {[%clk
0:01:12.8]} 19... Qg6 {[%clk 0:01:31.7]} 20. Qf2 {[%clk 0:01:11]} 20... Be6
{[%clk 0:01:16.8]} 21. Bf3 {[%clk 0:01:05.2]} 21... b6 {[%clk 0:01:14.1]} 22.
Qe2 {[%clk 0:00:54.9]} 22... f5 {[%clk 0:00:47.9]} 23. Rd1 {[%clk 0:00:41.6]}
23... Rxd1+ {[%clk 0:00:45]} 24. Qxd1 {[%clk 0:00:42.5]} 24... e4 {[%clk
0:00:44.9]} 25. Bh5 {[%clk 0:00:37.4]} 25... Qf6 {[%clk 0:00:44.8]} 26. Bd4
{[%clk 0:00:37.4]} 26... Qf8 {[%clk 0:00:42.8]} 27. Bg6 {[%clk 0:00:34.7]} 27...
Bf7 {[%clk 0:00:31.5]} 28. Qh5 {[%clk 0:00:27.3]} 28... Bxg6 {[%clk 0:00:29.6]}
29. Qxg6 {[%clk 0:00:28.2]} 29... Qf7 {[%clk 0:00:29.7]} 30. Qc6 {[%clk
0:00:25.9]} 30... Bd6 {[%clk 0:00:27.8]} 31. Qa8+ {[%clk 0:00:19.8]} 31... Kh7
{[%clk 0:00:27.3]} 32. Qxa7 {[%clk 0:00:20.3]} 32... Qe6 {[%clk 0:00:27]} 33.
Qa6 {[%clk 0:00:18.2]} 33... f4 {[%clk 0:00:25.2]} 34. Qe2 {[%clk 0:00:18.7]}
34... Kg6 {[%clk 0:00:25]} 35. b3 {[%clk 0:00:18.6]} 35... c5 {[%clk 0:00:24.5]}
36. Bf2 {[%clk 0:00:17.5]} 36... Qf5 {[%clk 0:00:25.4]} 37. Qd1 {[%clk
0:00:14.6]} 37... Qe6 {[%clk 0:00:24.4]} 38. Qe2 {[%clk 0:00:13.8]} 38... Be7
{[%clk 0:00:23.7]} 39. Qb5 {[%clk 0:00:11.9]} 39... Bf6 {[%clk 0:00:22.7]} 40.
a4 {[%clk 0:00:11.6]} 40... e3 {[%clk 0:00:22.2]} 41. Be1 {[%clk 0:00:11.6]}
41... Qd6 {[%clk 0:00:18.9]} 42. Qe2 {[%clk 0:00:11.4]} 42... Qe5 {[%clk
0:00:16.8]} 43. Qd3+ {[%clk 0:00:11.2]} 43... Qf5 {[%clk 0:00:16.5]} 44. Qe2
{[%clk 0:00:10]} 44... Qe6 {[%clk 0:00:16.3]} 45. Kc1 {[%clk 0:00:09.9]} 45...
Kf7 {[%clk 0:00:17.2]} 46. Qd3 {[%clk 0:00:10]} 46... Qe7 {[%clk 0:00:16.5]} 47.
Qc4+ {[%clk 0:00:09.9]} 47... Qe6 {[%clk 0:00:17.4]} 48. Qd3 {[%clk 0:00:10.1]}
48... Be5 {[%clk 0:00:16.7]} 49. Qb5 {[%clk 0:00:09.8]} 49... Bf6 {[%clk
0:00:17.6]} 50. a5 {[%clk 0:00:09.7]} 50... bxa5 {[%clk 0:00:15.3]} 51. Qxc5
{[%clk 0:00:10.2]} 51... Qe5 {[%clk 0:00:14.5]} 52. Qa7+ {[%clk 0:00:09.4]}
52... Kg6 {[%clk 0:00:15.4]} 53. Qa6 {[%clk 0:00:09]} 53... Kf5 {[%clk
0:00:16.3]} 54. Qd3+ {[%clk 0:00:09.5]} 54... Ke6 {[%clk 0:00:15.3]} 55. Qa6+
{[%clk 0:00:09.2]} 55... Kf7 {[%clk 0:00:16.2]} 56. Qa7+ {[%clk 0:00:09.1]}
56... Kg6 {[%clk 0:00:17.1]} 57. Qa6 {[%clk 0:00:09.5]} 57... Kh7 {[%clk
0:00:18]} 58. Qd3+ {[%clk 0:00:09.9]} 58... Kh8 {[%clk 0:00:18.9]} 59. Kd1
{[%clk 0:00:10.4]} 59... Kg8 {[%clk 0:00:18.3]} 60. Ke2 {[%clk 0:00:10.8]} 60...
Kf7 {[%clk 0:00:19.2]} 61. Qd7+ {[%clk 0:00:10.9]} 61... Kg6 {[%clk 0:00:20.1]}
62. c4 {[%clk 0:00:10.6]} 62... Qf5 {[%clk 0:00:21]} 63. Qd3 {[%clk 0:00:11.1]}
63... Qxd3+ {[%clk 0:00:19.1]} 64. cxd3 {[%clk 0:00:12]} 64... a4 {[%clk
0:00:18.7]} 65. bxa4 {[%clk 0:00:11.9]} 65... Be5 {[%clk 0:00:18.7]} 66. Ba5
{[%clk 0:00:09.3]} 66... Bd4 {[%clk 0:00:19.6]} 67. Bc7 {[%clk 0:00:08.7]} 67...
Kf5 {[%clk 0:00:14.8]} 68. a5 {[%clk 0:00:08.7]} 68... Ke6 {[%clk 0:00:15.7]}
69. Bb6 {[%clk 0:00:05.5]} 69... Kd7 {[%clk 0:00:16.6]} 70. Bxd4 {[%clk
0:00:05.4]} 70... g6 {[%clk 0:00:17.2]} 71. Bg7 {[%clk 0:00:06.3]} 71... Kc6
{[%clk 0:00:17.8]} 72. Bh6 {[%clk 0:00:06.6]} 72... Kb7 {[%clk 0:00:18.7]} 73.
Bxg5 {[%clk 0:00:07]} 73... Ka6 {[%clk 0:00:19.6]} 74. Bxf4 {[%clk 0:00:07.6]}
74... Kxa5 {[%clk 0:00:19.3]} 75. Bxe3 {[%clk 0:00:08.5]} 75... Ka6 {[%clk
0:00:20.2]} 76. c5 {[%clk 0:00:09.4]} 76... Kb7 {[%clk 0:00:21.1]} 77. Kf3
{[%clk 0:00:10.3]} 77... Kc6 {[%clk 0:00:20.2]} 78. Kg4 {[%clk 0:00:11.2]} 78...
Kd5 {[%clk 0:00:14.4]} 79. Kg5 {[%clk 0:00:12.1]} 1-0

[Event "*** Titled Tuesday Blitz"]
[Site "Chess.com"]
[Date "2020.03.03"]
[Round "1"]
[White "NTBT_DHS"]
[Black "Zarikovs1999"]
[Result "0-1"]
[WhiteElo "2702"]
[BlackElo "2371"]
[TimeControl "180+1"]
[EndTime "9:09:37 PST"]
[Termination "Zarikovs1999 won by resignation"]

1. d4 {[%clk 0:02:58.6]} 1... Nf6 {[%clk 0:02:59.9]} 2. c4 {[%clk 0:02:58.5]}
2... c5 {[%clk 0:02:59.6]} 3. d5 {[%clk 0:02:58.1]} 3... b5 {[%clk 0:02:59.2]}
4. cxb5 {[%clk 0:02:57.8]} 4... a6 {[%clk 0:02:59.7]} 5. bxa6 {[%clk 0:02:58.4]}
5... g6 {[%clk 0:02:59.3]} 6. Nc3 {[%clk 0:02:58.8]} 6... Bg7 {[%clk 0:02:59.7]}
7. Nf3 {[%clk 0:02:59.2]} 7... O-O {[%clk 0:03:00]} 8. g3 {[%clk 0:02:59.8]}
8... d6 {[%clk 0:02:56.1]} 9. Bg2 {[%clk 0:02:59.9]} 9... Bxa6 {[%clk
0:02:56.6]} 10. O-O {[%clk 0:03:00]} 10... Nbd7 {[%clk 0:02:54.1]} 11. Rb1
{[%clk 0:03:00.2]} 11... Qa5 {[%clk 0:02:49.8]} 12. Bd2 {[%clk 0:02:57.9]} 12...
Rfb8 {[%clk 0:02:49.1]} 13. Qc2 {[%clk 0:02:53.8]} 13... Ne8 {[%clk 0:02:33.7]}
14. b3 {[%clk 0:02:26.2]} 14... Qb6 {[%clk 0:02:01.9]} 15. Rfe1 {[%clk
0:02:22.7]} 15... Nc7 {[%clk 0:02:00.4]} 16. a4 {[%clk 0:02:22.6]} 16... Bxc3
{[%clk 0:01:57.5]} 17. Bxc3 {[%clk 0:02:20.3]} 17... Nxd5 {[%clk 0:01:57.8]} 18.
Ba1 {[%clk 0:02:20.1]} 18... N7f6 {[%clk 0:01:44.8]} 19. Ng5 {[%clk 0:02:09.8]}
19... Nb4 {[%clk 0:01:29.1]} 20. Qc3 {[%clk 0:02:02.3]} 20... Bb7 {[%clk
0:01:24.7]} 21. e4 {[%clk 0:01:56.9]} 21... h6 {[%clk 0:01:19.8]} 22. Nh3 {[%clk
0:01:41.4]} 22... e5 {[%clk 0:01:03.7]} 23. Rbd1 {[%clk 0:01:21]} 23... Rd8
{[%clk 0:00:39]} 24. f4 {[%clk 0:01:19.4]} 24... Nc6 {[%clk 0:00:37.1]} 25. fxe5
{[%clk 0:01:11.1]} 25... dxe5 {[%clk 0:00:38]} 26. Nf2 {[%clk 0:00:45.4]} 26...
Nd4 {[%clk 0:00:37]} 27. Rd3 {[%clk 0:00:44]} 27... Ba6 {[%clk 0:00:34.7]} 28.
Rde3 {[%clk 0:00:43]} 28... Rab8 {[%clk 0:00:31.7]} 29. h3 {[%clk 0:00:38]}
29... Re8 {[%clk 0:00:24.6]} 30. Kh2 {[%clk 0:00:37.3]} 30... Qxb3 {[%clk
0:00:23.8]} 31. Qxc5 {[%clk 0:00:37.4]} 31... Qxa4 {[%clk 0:00:22.9]} 32. Qd6
{[%clk 0:00:36.8]} 32... Qc6 {[%clk 0:00:19.1]} 33. Qxc6 {[%clk 0:00:31.6]}
33... Nxc6 {[%clk 0:00:20]} 34. Nd3 {[%clk 0:00:30.5]} 34... Rb3 {[%clk
0:00:11.2]} 35. Nc5 {[%clk 0:00:28.5]} 35... Rxe3 {[%clk 0:00:11.2]} 36. Rxe3
{[%clk 0:00:29.4]} 36... Bc4 {[%clk 0:00:11.6]} 37. Rc3 {[%clk 0:00:25.7]} 37...
Bb5 {[%clk 0:00:11]} 38. Nb7 {[%clk 0:00:25.1]} 38... Nd4 {[%clk 0:00:08]} 39.
Nd6 {[%clk 0:00:24]} 39... Rb8 {[%clk 0:00:08.5]} 40. Rc5 {[%clk 0:00:21.4]}
40... Be2 {[%clk 0:00:06.8]} 41. Rxe5 {[%clk 0:00:18.7]} 41... Nf3+ {[%clk
0:00:06.8]} 42. Bxf3 {[%clk 0:00:19.1]} 42... Bxf3 {[%clk 0:00:07.7]} 43. Nb5
{[%clk 0:00:19.6]} 43... Nxe4 {[%clk 0:00:06.3]} 44. Bd4 {[%clk 0:00:19.1]}
44... Nd2 {[%clk 0:00:04.6]} 45. g4 {[%clk 0:00:16]} 45... Bc6 {[%clk
0:00:03.9]} 46. Na7 {[%clk 0:00:12.8]} 46... Nf3+ {[%clk 0:00:03.6]} 47. Kg3
{[%clk 0:00:13.3]} 47... Nxe5 {[%clk 0:00:04.5]} 48. Bxe5 {[%clk 0:00:14.1]}
48... Rb3+ {[%clk 0:00:04.5]} 49. Kf2 {[%clk 0:00:13.1]} 49... Bb7 {[%clk
0:00:05.4]} 50. h4 {[%clk 0:00:12.8]} 50... Rf3+ {[%clk 0:00:06.3]} 51. Ke2
{[%clk 0:00:12.5]} 51... Rh3 {[%clk 0:00:07.2]} 52. g5 {[%clk 0:00:12.4]} 52...
Rxh4 {[%clk 0:00:07.1]} 53. gxh6 {[%clk 0:00:12.7]} 53... Rxh6 {[%clk 0:00:08]}
54. Ke3 {[%clk 0:00:12.7]} 54... Rh5 {[%clk 0:00:08.9]} 55. Bd4 {[%clk
0:00:12.1]} 55... Rh3+ {[%clk 0:00:08.7]} 56. Kf4 {[%clk 0:00:12.2]} 56... Rh4+
{[%clk 0:00:08.5]} 57. Ke3 {[%clk 0:00:12.6]} 57... Re4+ {[%clk 0:00:08.9]} 58.
Kd3 {[%clk 0:00:13.1]} 58... Re7 {[%clk 0:00:09.8]} 59. Kc3 {[%clk 0:00:13.4]}
59... Be4 {[%clk 0:00:10.7]} 60. Nb5 {[%clk 0:00:13.5]} 60... Bc6 {[%clk
0:00:10.5]} 61. Nd6 {[%clk 0:00:13.3]} 61... Bd5 {[%clk 0:00:10.8]} 62. Bc5
{[%clk 0:00:12.3]} 62... Rc7 {[%clk 0:00:11.1]} 63. Kd4 {[%clk 0:00:12.7]} 63...
Be6 {[%clk 0:00:10.4]} 64. Nb5 {[%clk 0:00:12.5]} 64... Rd7+ {[%clk 0:00:10.4]}
65. Nd6 {[%clk 0:00:12]} 65... Kg7 {[%clk 0:00:10.4]} 66. Ke5 {[%clk 0:00:12]}
66... Rd8 {[%clk 0:00:10.1]} 67. Bd4 {[%clk 0:00:11.7]} 67... Ra8 {[%clk
0:00:09.9]} 68. Ke4+ {[%clk 0:00:10]} 68... Kh6 {[%clk 0:00:09.4]} 69. Bf6
{[%clk 0:00:09.4]} 69... Ra5 {[%clk 0:00:09.6]} 70. Kf4 {[%clk 0:00:08.3]} 70...
Ra4+ {[%clk 0:00:08.6]} 71. Ke5 {[%clk 0:00:08.1]} 71... g5 {[%clk 0:00:08.4]}
72. Ne4 {[%clk 0:00:07.2]} 72... g4 {[%clk 0:00:08]} 73. Bg5+ {[%clk 0:00:06.3]}
73... Kg6 {[%clk 0:00:07.8]} 74. Bf4 {[%clk 0:00:04.5]} 74... Bf5 {[%clk
0:00:06.6]} 75. Nd6 {[%clk 0:00:03.4]} 75... Ra5+ {[%clk 0:00:06.6]} 76. Kd4
{[%clk 0:00:03.4]} 76... Ra6 {[%clk 0:00:06.5]} 77. Nc4 {[%clk 0:00:02.7]} 77...
Be6 {[%clk 0:00:06.7]} 78. Ne5+ {[%clk 0:00:02.3]} 78... Kf5 {[%clk 0:00:06.4]}
79. Bg3 {[%clk 0:00:03.2]} 79... Ra4+ {[%clk 0:00:07.2]} 80. Ke3 {[%clk
0:00:02.9]} 80... Re4+ {[%clk 0:00:08.1]} 81. Kf2 {[%clk 0:00:02.8]} 81... Rxe5
{[%clk 0:00:09]} 0-1

[Event "*** Titled Tuesday Blitz"]
[Site "Chess.com"]
[Date "2020.03.03"]
[Round "1"]
[White "Andrew-FB00"]
[Black "M1711"]
[Result "1-0"]
[WhiteElo "1871"]
[BlackElo "2539"]
[TimeControl "180+1"]
[EndTime "9:09:37 PST"]
[Termination "Andrew-FB00 won by checkmate"]

1. e4 {[%clk 0:03:00.9]} 1... c5 {[%clk 0:02:59.8]} 2. Nf3 {[%clk 0:02:57.3]}
2... e6 {[%clk 0:02:59.4]} 3. Nc3 {[%clk 0:02:52.1]} 3... Nc6 {[%clk 0:02:58.8]}
4. Bb5 {[%clk 0:02:50.6]} 4... Nge7 {[%clk 0:02:58.1]} 5. O-O {[%clk 0:02:49.5]}
5... a6 {[%clk 0:02:58.2]} 6. Bxc6 {[%clk 0:02:48.3]} 6... Nxc6 {[%clk 0:02:59]}
7. d4 {[%clk 0:02:46]} 7... cxd4 {[%clk 0:02:59.9]} 8. Nxd4 {[%clk 0:02:45.4]}
8... d6 {[%clk 0:02:59.3]} 9. Be3 {[%clk 0:02:40]} 9... Be7 {[%clk 0:02:57.8]}
10. f4 {[%clk 0:02:39]} 10... O-O {[%clk 0:02:57.2]} 11. f5 {[%clk 0:02:19.1]}
11... Ne5 {[%clk 0:02:35.1]} 12. b3 {[%clk 0:02:04.7]} 12... Bg5 {[%clk
0:02:30.7]} 13. Bxg5 {[%clk 0:02:02]} 13... Qxg5 {[%clk 0:02:31.6]} 14. Qc1
{[%clk 0:01:52]} 14... Qxc1 {[%clk 0:02:22.1]} 15. Raxc1 {[%clk 0:01:50.6]}
15... Bd7 {[%clk 0:02:19.5]} 16. Nce2 {[%clk 0:01:46.7]} 16... Rac8 {[%clk
0:02:08.4]} 17. c4 {[%clk 0:01:46.2]} 17... Nd3 {[%clk 0:02:04.2]} 18. Rcd1
{[%clk 0:01:44.8]} 18... Nc5 {[%clk 0:02:01.7]} 19. Ng3 {[%clk 0:01:34.1]} 19...
a5 {[%clk 0:01:45.4]} 20. fxe6 {[%clk 0:01:33.4]} 20... fxe6 {[%clk 0:01:44]}
21. Rxf8+ {[%clk 0:01:33.2]} 21... Rxf8 {[%clk 0:01:43.9]} 22. Nde2 {[%clk
0:01:23]} 22... Ra8 {[%clk 0:01:17.6]} 23. Rxd6 {[%clk 0:01:21.8]} 23... Kf8
{[%clk 0:01:18]} 24. Nc3 {[%clk 0:01:11.2]} 24... Ke7 {[%clk 0:01:17.9]} 25. Rd2
{[%clk 0:01:10.7]} 25... Bc6 {[%clk 0:01:16.3]} 26. Kf2 {[%clk 0:01:07.7]} 26...
g6 {[%clk 0:01:04.4]} 27. Ke3 {[%clk 0:01:06.5]} 27... b6 {[%clk 0:00:58.7]} 28.
Nge2 {[%clk 0:00:59.7]} 28... Bd7 {[%clk 0:00:54.9]} 29. Nd4 {[%clk 0:00:48.6]}
29... a4 {[%clk 0:00:49.7]} 30. bxa4 {[%clk 0:00:34.8]} 30... Nxa4 {[%clk
0:00:47.9]} 31. Nxa4 {[%clk 0:00:34.1]} 31... Rxa4 {[%clk 0:00:48.8]} 32. Rc2
{[%clk 0:00:29.7]} 32... Kd6 {[%clk 0:00:41.9]} 33. Nb3 {[%clk 0:00:28.6]} 33...
Kc6 {[%clk 0:00:35.5]} 34. c5 {[%clk 0:00:20.2]} 34... e5 {[%clk 0:00:21.3]} 35.
h3 {[%clk 0:00:15.8]} 35... h5 {[%clk 0:00:16]} 36. cxb6+ {[%clk 0:00:15]} 36...
Kxb6 {[%clk 0:00:16.9]} 37. Rb2 {[%clk 0:00:14.4]} 37... Ka7 {[%clk 0:00:12.4]}
38. Nd2 {[%clk 0:00:13.4]} 38... Bc6 {[%clk 0:00:11.5]} 39. g4 {[%clk
0:00:10.7]} 39... hxg4 {[%clk 0:00:11]} 40. hxg4 {[%clk 0:00:10.4]} 40... g5
{[%clk 0:00:11.5]} 41. Rc2 {[%clk 0:00:10]} 41... Kb7 {[%clk 0:00:07.8]} 42.
Rb2+ {[%clk 0:00:08.9]} 42... Kc7 {[%clk 0:00:06.7]} 43. Rc2 {[%clk 0:00:08.9]}
43... Ra3+ {[%clk 0:00:06.8]} 44. Kf2 {[%clk 0:00:07.9]} 44... Kd7 {[%clk
0:00:04.9]} 45. Nc4 {[%clk 0:00:07.4]} 45... Rh3 {[%clk 0:00:05.3]} 46. Nxe5+
{[%clk 0:00:06.8]} 46... Ke6 {[%clk 0:00:04.6]} 47. Nxc6 {[%clk 0:00:07.4]}
47... Rh2+ {[%clk 0:00:04.5]} 48. Ke3 {[%clk 0:00:07.3]} 48... Rxc2 {[%clk
0:00:05.4]} 49. Nd4+ {[%clk 0:00:07.5]} 49... Kd6 {[%clk 0:00:03]} 50. Nxc2
{[%clk 0:00:08.4]} 50... Ke5 {[%clk 0:00:03.9]} 51. a4 {[%clk 0:00:08.7]} 51...
Kd6 {[%clk 0:00:03.2]} 52. Kd4 {[%clk 0:00:08.8]} 52... Kc6 {[%clk 0:00:04.1]}
53. e5 {[%clk 0:00:08.8]} 53... Kb6 {[%clk 0:00:05]} 54. e6 {[%clk 0:00:08.8]}
54... Ka6 {[%clk 0:00:05.9]} 55. e7 {[%clk 0:00:08.8]} 55... Kb7 {[%clk
0:00:06.8]} 56. e8=Q {[%clk 0:00:08.2]} 56... Ka7 {[%clk 0:00:07.7]} 57. Qd7+
{[%clk 0:00:08]} 57... Kb6 {[%clk 0:00:08.6]} 58. Qb5+ {[%clk 0:00:07.8]} 58...
Ka7 {[%clk 0:00:09.5]} 59. Qa5+ {[%clk 0:00:07.6]} 59... Kb7 {[%clk 0:00:08.6]}
60. Ke5 {[%clk 0:00:07.7]} 60... Kc8 {[%clk 0:00:09.5]} 61. Kf5 {[%clk
0:00:07.7]} 61... Kb7 {[%clk 0:00:10.4]} 62. Kxg5 {[%clk 0:00:07.9]} 62... Kc8
{[%clk 0:00:11.3]} 63. Kf6 {[%clk 0:00:08]} 63... Kb7 {[%clk 0:00:12.2]} 64. g5
{[%clk 0:00:08.2]} 64... Kc8 {[%clk 0:00:13.1]} 65. g6 {[%clk 0:00:08.4]} 65...
Kb7 {[%clk 0:00:04.7]} 66. g7 {[%clk 0:00:08.2]} 66... Kc6 {[%clk 0:00:05.6]}
67. Qb5+ {[%clk 0:00:07.1]} 67... Kd6 {[%clk 0:00:06.5]} 68. Ne1 {[%clk
0:00:04.4]} 68... Kc7 {[%clk 0:00:07.4]} 69. g8=Q {[%clk 0:00:03.4]} 69... Kd6
{[%clk 0:00:08.3]} 70. Qe6+ {[%clk 0:00:03]} 70... Kc7 {[%clk 0:00:09.2]} 71.
Qed7# {[%clk 0:00:03.1]} 1-0